bitfinex/quotes_BTCUSD_20250205
["timestamp","ask_amount","ask_price","bid_price","bid_amount"]
[1738739963746,0.794824,97399.0,97398.0,0.00022407]
[1738739969597,0.794824,97399.0,97398.0,0.10260913]
[1738739973686,0.794824,97399.0,97398.0,0.00022407]
[1738739974200,0.872724,97399.0,97398.0,0.00022407]
[1738739974519,0.794824,97399.0,97398.0,0.10260913]
[1738739975124,0.67162,97399.0,97398.0,0.10260913]
[1738739975584,0.34222,97399.0,97398.0,0.10260913]
[1738739975789,0.34222,97399.0,97398.0,0.10956022]
[1738739976860,0.34222,97399.0,97398.0,0.23276522]
[1738739977056,0.34222,97399.0,97398.0,1.43801122]
[1738739977294,0.34222,97399.0,97398.0,2.24799422]
[1738739977503,0.34222,97399.0,97398.0,2.86283522]
[1738739977723,0.34222,97399.0,97398.0,3.23025762]
[1738739978211,0.34222,97399.0,97398.0,2.95332962]
[1738739978413,0.34222,97399.0,97398.0,2.51228562]
[1738739978557,0.34222,97399.0,97398.0,1.53300762]
[1738739978760,0.465424,97399.0,97398.0,0.10956022]
[1738739978984,0.446424,97399.0,97398.0,0.10260913]
[1738739983646,0.775824,97399.0,97398.0,0.10260913]
[1738739983795,0.756824,97399.0,97398.0,0.10260913]
[1738739985914,0.834624,97399.0,97398.0,0.00022407]
[1738739986727,0.85365398,97399.0,97398.0,0.00022407]
[1738739987710,1.05345398,97399.0,97398.0,0.00022407]
[1738739991759,0.82565398,97399.0,97398.0,0.10260913]
[1738739992007,0.77585398,97399.0,97398.0,0.10260913]
[1738739992176,0.756824,97399.0,97398.0,0.10260913]
[1738739994270,0.7569309,97399.0,97398.0,0.10260913]
[1738739996739,0.7569309,97399.0,97398.0,0.00022407]
[1738739998388,0.7759517,97399.0,97398.0,0.00022407]
[1738739999224,1.0503517,97399.0,97398.0,0.00022407]
[1738739999691,1.08078234,97399.0,97398.0,0.00022407]
[1738740000830,1.09360589,97399.0,97398.0,0.00022407]
[1738740002338,1.10400657,97399.0,97398.0,0.00022407]
[1738740003213,1.09118302,97399.0,97398.0,0.00022407]
[1738740004050,0.94118302,97399.0,97398.0,0.00022407]
[1738740004248,0.85398234,97399.0,97398.0,0.10260913]
[1738740004477,0.80638234,97399.0,97398.0,0.10260913]
[1738740004680,0.68317834,97399.0,97398.0,0.10260913]
[1738740005663,0.6337269,97399.0,97398.0,0.10260913]
[1738740007379,0.6337269,97399.0,97398.0,0.10817777]
[1738740008034,0.3043269,97399.0,97398.0,0.10817777]
[1738740012186,0.3043269,97399.0,97398.0,2.01859277]
[1738740012873,0.3043269,97399.0,97398.0,0.13117777]
[1738740013033,0.3043269,97399.0,97398.0,3.58575677]
[1738740014516,0.3043269,97399.0,97398.0,3.70736584]
[1738740014752,0.3043269,97399.0,97398.0,3.70505471]
[1738740014944,0.3043269,97399.0,97398.0,2.18183771]
[1738740015162,0.3043269,97399.0,97398.0,2.09979271]
[1738740015542,0.3043269,97399.0,97398.0,2.06885954]
[1738740015740,0.3043269,97399.0,97398.0,2.09978488]
[1738740015917,0.3043269,97399.0,97398.0,2.06885954]
[1738740016127,0.3043269,97399.0,97398.0,2.08938439]
[1738740019523,0.2853269,97399.0,97398.0,2.05845954]
[1738740020901,0.2853269,97399.0,97398.0,2.33166454]
[1738740021123,0.2853269,97399.0,97398.0,2.33394455]
[1738740021332,0.2853269,97399.0,97398.0,2.36483921]
[1738740021825,0.2853269,97399.0,97398.0,2.37483921]
[1738740022179,0.2853269,97399.0,97398.0,2.38523921]
[1738740023403,0.2853269,97399.0,97398.0,2.37523921]
[1738740023620,0.2853269,97399.0,97398.0,2.38059731]
[1738740023774,0.2853269,97399.0,97398.0,2.38289448]
[1738740026534,0.2853269,97399.0,97398.0,1.92468248]
[1738740026689,0.2853269,97399.0,97398.0,1.90146782]
[1738740026902,0.2853269,97399.0,97398.0,1.92446782]
[1738740027316,0.2853269,97399.0,97398.0,1.90146782]
[1738740028327,0.5348309,97399.0,97398.0,0.11179782]
[1738740028654,0.5348309,97399.0,97398.0,0.10722094]
[1738740029107,0.5158309,97399.0,97398.0,0.10260913]
[1738740036483,0.3130269,97399.0,97398.0,0.10260913]
[1738740036676,0.2663269,97399.0,97398.0,0.10260913]
[1738740036951,0.2663269,97399.0,97398.0,2.10761124]
[1738740037285,0.2663269,97399.0,97398.0,1.94965724]
[1738740038333,0.3895309,97399.0,97398.0,0.10952724]
[1738740039261,0.2663269,97399.0,97398.0,0.34650124]
[1738740039482,0.2663269,97399.0,97398.0,0.21315324]
[1738740040894,0.3920269,97399.0,97398.0,0.00714218]
[1738740041066,0.3920269,97399.0,97398.0,0.00486988]
[1738740041341,0.7214269,97399.0,97398.0,0.00486988]
[1738740041517,0.7214269,97399.0,97398.0,0.00022407]
[1738740042304,0.123241,97370.0,97368.0,0.08171979]
[1738740042506,0.389461,97370.0,97369.0,0.10238506]
[1738740042908,0.389461,97370.0,97369.0,0.10703384]
[1738740043253,0.517761,97370.0,97369.0,0.10238506]
[1738740047093,0.123251,97362.0,97354.0,0.00022428]
[1738740047299,0.389471,97362.0,97354.0,0.00022428]
[1738740048024,0.847571,97362.0,97354.0,0.00022428]
[1738740061526,0.86648323,97362.0,97354.0,0.00022428]
[1738740064203,0.90959501,97362.0,97354.0,0.00022428]
[1738740068897,1.05959501,97362.0,97354.0,0.00022428]
[1738740072104,0.399055,97359.0,97354.0,0.00022428]
[1738740072303,0.665275,97359.0,97354.0,0.00022428]
[1738740072930,0.249079,97340.0,97339.0,0.00022449]
[1738740073264,0.844699,97340.0,97339.0,0.00022449]
[1738740073465,0.90672301,97340.0,97339.0,0.00022449]
[1738740073795,1.05672301,97340.0,97339.0,0.00022449]
[1738740077020,1.08749253,97340.0,97339.0,0.00022449]
[1738740077216,1.05672301,97340.0,97339.0,0.00022449]
[1738740078010,1.06704032,97340.0,97339.0,0.00022449]
[1738740079279,1.07704032,97340.0,97339.0,0.00022449]
[1738740080775,1.06704032,97340.0,97339.0,0.00022449]
[1738740081175,0.82742301,97340.0,97339.0,0.00022449]
[1738740081544,0.82742301,97340.0,97339.0,0.10260955]
[1738740081545,0.78092301,97340.0,97339.0,0.10260955]
[1738740081918,0.28513223,97340.0,97339.0,0.10260955]
[1738740082266,0.28513223,97340.0,97339.0,0.10625335]
[1738740082906,0.26622,97340.0,97339.0,1.17881035]
[1738740083869,0.24722,97340.0,97339.0,1.17881035]
[1738740084280,0.24722,97340.0,97339.0,1.25651035]
[1738740084453,0.24722,97340.0,97339.0,1.27951035]
[1738740084653,0.24722,97340.0,97339.0,1.28069557]
[1738740084875,0.24722,97340.0,97339.0,1.09594657]
[1738740085481,0.24722,97340.0,97339.0,1.07294657]
[1738740086241,0.24722,97340.0,97339.0,0.11511857]
[1738740086650,0.24722,97340.0,97339.0,0.10743857]
[1738740087801,0.24722,97340.0,97339.0,0.10260955]
[1738740090261,0.24722,97340.0,97339.0,1.19579094]
[1738740090503,0.24722,97340.0,97339.0,0.39007594]
[1738740090703,0.24722,97340.0,97339.0,0.30796494]
[1738740091122,0.24722,97340.0,97339.0,0.10676694]
[1738740091326,0.370499,97340.0,97339.0,0.10676694]
[1738740091524,0.24722,97340.0,97339.0,0.10676694]
[1738740092109,0.24722,97340.0,97339.0,0.10260955]
[1738740092713,0.370499,97340.0,97339.0,0.10624727]
[1738740092914,0.370499,97340.0,97339.0,0.10260955]
[1738740094193,0.24722,97340.0,97339.0,0.10260955]
[1738740094595,0.24722,97340.0,97339.0,0.10728521]
[1738740094833,0.24722,97340.0,97339.0,1.67666521]
[1738740095038,0.24722,97340.0,97339.0,2.14720955]
[1738740095216,0.24722,97340.0,97339.0,2.15188521]
[1738740095444,0.24722,97340.0,97339.0,0.54558121]
[1738740095638,0.24722,97340.0,97339.0,0.10728521]
[1738740095968,0.29462,97340.0,97339.0,0.10260955]
[1738740097192,0.29462,97340.0,97339.0,0.00022449]
[1738740097432,0.62402,97340.0,97339.0,0.00022449]
[1738740098041,0.6242445,97340.0,97339.0,0.00022449]
[1738740099205,0.63457241,97340.0,97339.0,0.00022449]
[1738740099626,0.71517241,97340.0,97339.0,0.00022449]
[1738740100310,0.73415257,97340.0,97339.0,0.00022449]
[1738740105644,0.72382466,97340.0,97339.0,0.00022449]
[1738740107876,0.87382466,97340.0,97339.0,0.00022449]
[1738740109463,0.90419276,97340.0,97339.0,0.00022449]
[1738740111068,0.75419276,97340.0,97339.0,0.00022449]
[1738740111271,0.67359276,97340.0,97339.0,0.00022449]
[1738740112426,0.6242445,97340.0,97339.0,0.00022449]
[1738740113354,0.5768445,97340.0,97339.0,0.00022449]
[1738740113553,0.5768445,97340.0,97339.0,0.10260955]
[1738740115456,0.5768445,97340.0,97339.0,0.00022449]
[1738740115839,0.2474445,97340.0,97339.0,0.10260955]
[1738740116043,0.2474445,97340.0,97339.0,0.11116642]
[1738740117572,0.2474445,97340.0,97339.0,0.23444642]
[1738740118215,0.2474445,97340.0,97339.0,0.11116642]
[1738740118772,0.2474445,97340.0,97339.0,0.23444642]
[1738740119217,0.2474445,97340.0,97339.0,1.89003742]
[1738740119422,0.2474445,97340.0,97339.0,4.01245642]
[1738740119752,0.2474445,97340.0,97339.0,4.34326742]
[1738740123727,0.2474445,97340.0,97339.0,4.18899042]
[1738740123936,0.2284445,97340.0,97339.0,3.62962442]
[1738740124276,0.2284445,97340.0,97339.0,0.72557942]
[1738740125839,0.2284445,97340.0,97339.0,0.5481946]
[1738740126037,0.3517235,97340.0,97339.0,0.1288716]
[1738740126881,0.3517235,97340.0,97339.0,0.11884642]
[1738740127018,0.2284445,97340.0,97339.0,0.11884642]
[1738740128083,0.2284445,97340.0,97339.0,0.38675942]
[1738740128258,0.2284445,97340.0,97339.0,0.80347242]
[1738740128637,0.2284445,97340.0,97339.0,0.43499942]
[1738740128816,0.2094445,97340.0,97339.0,0.43499942]
[1738740129019,0.2094445,97340.0,97339.0,0.37033742]
[1738740130028,0.2094445,97340.0,97339.0,0.11116642]
[1738740130475,0.2094445,97340.0,97339.0,0.10260955]
[1738740131535,0.2094445,97340.0,97339.0,0.11116357]
[1738740135087,0.2094445,97340.0,97339.0,0.10260955]
[1738740137919,0.2909445,97340.0,97339.0,0.10260955]
[1738740139457,0.2719445,97340.0,97339.0,0.10260955]
[1738740142216,0.2719445,97340.0,97339.0,0.10608235]
[1738740144054,0.1904445,97340.0,97339.0,0.10608235]
[1738740144527,0.1904445,97340.0,97339.0,0.1146566]
[1738740144929,0.1904445,97340.0,97339.0,0.10608235]
[1738740146275,0.1904445,97340.0,97339.0,0.11465235]
[1738740147497,0.1904445,97340.0,97339.0,0.10608235]
[1738740148143,0.1904445,97340.0,97339.0,0.11465289]
[1738740149333,0.1904445,97340.0,97339.0,0.10608235]
[1738740149898,0.1904445,97340.0,97339.0,0.22936235]
[1738740150107,0.1904445,97340.0,97339.0,2.28933035]
[1738740150282,0.1904445,97340.0,97339.0,0.81569589]
[1738740150529,0.1904445,97340.0,97339.0,0.91947389]
[1738740152657,0.1904445,97340.0,97339.0,0.23793289]
[1738740152858,0.1904445,97340.0,97339.0,1.03956089]
[1738740155543,0.1904445,97340.0,97339.0,0.52009789]
[1738740155713,0.1904445,97340.0,97339.0,0.44566689]
[1738740156636,0.1904445,97340.0,97339.0,0.40871789]
[1738740156843,0.2674445,97340.0,97339.0,0.11465289]
[1738740159852,0.26718658,97340.0,97339.0,0.11465289]
[1738740160620,0.26718658,97340.0,97339.0,0.11463582]
[1738740160917,0.19018658,97340.0,97339.0,0.11463582]
[1738740162501,0.19018658,97340.0,97339.0,0.11549502]
[1738740162926,0.19018658,97340.0,97339.0,0.23877502]
[1738740163902,0.19018658,97340.0,97339.0,1.99413483]
[1738740165382,0.19018658,97340.0,97339.0,0.26977683]
[1738740165516,0.19018658,97340.0,97339.0,4.62999783]
[1738740166834,0.19018658,97340.0,97339.0,4.64019167]
[1738740168918,0.17118658,97340.0,97339.0,4.64019167]
[1738740169120,0.17118658,97340.0,97339.0,4.75019167]
[1738740170724,0.15063958,97340.0,97339.0,4.76019167]
[1738740172685,0.06845158,97340.0,97339.0,4.76019167]
[1738740173312,0.06845158,97340.0,97339.0,4.78770755]
[1738740173867,0.04945158,97340.0,97339.0,4.78770755]
[1738740175575,0.0794,97380.0,97346.0,0.01]
[1738740175774,0.0794,97380.0,97379.0,0.123229]
[1738740175975,0.0794,97380.0,97379.0,0.23325406]
[1738740176215,0.0794,97380.0,97379.0,0.24167771]
[1738740176534,0.0794,97380.0,97379.0,0.24253691]
[1738740176886,0.0794,97380.0,97379.0,0.11930791]
[1738740179046,0.0796245,97380.0,97379.0,0.11930791]
[1738740179243,0.0002245,97380.0,97379.0,0.11930791]
[1738740179481,0.02061087,97392.0,97379.0,1.1157291]
[1738740179669,0.0765,97391.0,97384.0,0.10238506]
[1738740179874,0.123222,97385.0,97384.0,0.10238506]
[1738740180501,0.199722,97385.0,97384.0,0.10238506]
[1738740180703,0.199722,97385.0,97384.0,0.0008592]
[1738740181626,0.713152,97385.0,97384.0,0.0008592]
[1738740181849,0.72329907,97385.0,97384.0,0.0008592]
[1738740182626,0.77269907,97385.0,97384.0,0.0008592]
[1738740183627,1.10209907,97385.0,97384.0,0.0008592]
[1738740188967,1.25209907,97385.0,97384.0,0.0008592]
[1738740189171,0.123232,97377.0,97376.0,0.0034728]
[1738740189411,0.172561,97354.0,97353.0,0.08171979]
[1738740189609,1.097591,97354.0,97353.0,0.08171979]
[1738740189924,0.205474,97344.0,97343.0,0.08171979]
[1738740190124,0.718904,97344.0,97343.0,0.18410485]
[1738740190347,0.718904,97344.0,97343.0,0.10238506]
[1738740192996,0.764304,97344.0,97343.0,0.10238506]
[1738740194579,1.243704,97344.0,97343.0,0.10238506]
[1738740194783,1.093704,97344.0,97343.0,0.10238506]
[1738740204287,1.093704,97344.0,97343.0,0.10249186]
[1738740207718,0.88823,97344.0,97343.0,0.10249186]
[1738740207931,0.84283,97344.0,97343.0,0.10249186]
[1738740208272,0.51343,97344.0,97343.0,1.00603942]
[1738740208500,0.51343,97344.0,97343.0,1.02903942]
[1738740208700,0.51343,97344.0,97343.0,1.26213942]
[1738740209198,0.51343,97344.0,97343.0,1.04250542]
[1738740209394,0.51343,97344.0,97343.0,0.94090242]
[1738740210032,0.51343,97344.0,97343.0,0.57718842]
[1738740210239,0.51343,97344.0,97343.0,0.55358742]
[1738740210613,0.51343,97344.0,97343.0,0.57658742]
[1738740211630,0.51343,97344.0,97343.0,0.42658742]
[1738740213896,0.49443,97344.0,97343.0,0.42658742]
[1738740214895,0.49443,97344.0,97343.0,0.57658742]
[1738740215252,0.49443,97344.0,97343.0,0.70963462]
[1738740215460,0.49443,97344.0,97343.0,0.71963462]
[1738740215604,0.49443,97344.0,97343.0,0.760513]
[1738740216526,0.43939544,97344.0,97343.0,0.760513]
[1738740217130,0.43939544,97344.0,97343.0,0.7507058]
[1738740217666,0.43939544,97344.0,97343.0,0.8507058]
[1738740218208,0.43939544,97344.0,97343.0,0.7230658]
[1738740218414,0.43939544,97344.0,97343.0,0.56122742]
[1738740218849,0.43939544,97344.0,97343.0,0.58422742]
[1738740219068,0.42039544,97344.0,97343.0,0.60336177]
[1738740219185,0.42039544,97344.0,97343.0,0.31083577]
[1738740219387,0.42039544,97344.0,97343.0,1.75277577]
[1738740220192,0.42039544,97344.0,97343.0,1.63534777]
[1738740220392,0.42039544,97344.0,97343.0,0.72606877]
[1738740220693,0.42039544,97344.0,97343.0,0.59778777]
[1738740221090,0.42039544,97344.0,97343.0,0.55778077]
[1738740222301,0.42039544,97344.0,97343.0,0.40778077]
[1738740227863,0.42039544,97344.0,97343.0,0.58078077]
[1738740228023,0.42039544,97344.0,97343.0,0.58350407]
[1738740228232,0.42039544,97344.0,97343.0,0.65960407]
[1738740228839,0.40139544,97344.0,97343.0,0.58350407]
[1738740229522,0.40139544,97344.0,97343.0,0.61438089]
[1738740229968,0.40139544,97344.0,97343.0,0.61165759]
[1738740230353,0.40139544,97344.0,97343.0,0.58078077]
[1738740232432,0.40139544,97344.0,97343.0,0.31083577]
[1738740232641,0.40139544,97344.0,97343.0,4.41965677]
[1738740233801,0.38239544,97344.0,97343.0,4.41965677]
[1738740236209,0.38239544,97344.0,97343.0,2.34909077]
[1738740236410,0.38239544,97344.0,97343.0,1.59268577]
[1738740238572,0.38239544,97344.0,97343.0,1.6233927]
[1738740238886,0.36339544,97344.0,97343.0,1.6233927]
[1738740239659,0.36339544,97344.0,97343.0,1.59268577]
[1738740240270,0.36339544,97344.0,97343.0,1.58504577]
[1738740240631,0.36339544,97344.0,97343.0,0.13019577]
[1738740240784,0.36339544,97344.0,97343.0,0.25347077]
[1738740240988,0.36339544,97344.0,97343.0,0.26111077]
[1738740241191,0.36339544,97344.0,97343.0,1.42600377]
[1738740241390,0.36339544,97344.0,97343.0,1.45576677]
[1738740242695,0.36339544,97344.0,97343.0,1.47876677]
[1738740242893,0.36339544,97344.0,97343.0,1.62876677]
[1738740243966,0.34439544,97344.0,97343.0,1.62876677]
[1738740246463,0.34439544,97344.0,97343.0,1.65947486]
[1738740246657,0.34439544,97344.0,97343.0,1.23866486]
[1738740246864,0.34439544,97344.0,97343.0,1.04880286]
[1738740247090,0.34439544,97344.0,97343.0,0.77581286]
[1738740247284,0.34439544,97344.0,97343.0,0.71320886]
[1738740249107,0.32539544,97344.0,97343.0,0.28417886]
[1738740249310,0.32539544,97344.0,97343.0,0.53713186]
[1738740251083,0.32539544,97344.0,97343.0,0.55249186]
[1738740251304,0.32539544,97344.0,97343.0,0.56013186]
[1738740251448,0.32550234,97344.0,97343.0,0.56013186]
[1738740252168,0.32550234,97344.0,97343.0,0.53713186]
[1738740254025,0.30650234,97344.0,97343.0,0.53713186]
[1738740254232,0.30650234,97344.0,97343.0,0.50642377]
[1738740254454,0.30650234,97344.0,97343.0,0.52942377]
[1738740255216,0.30650234,97344.0,97343.0,0.67942377]
[1738740256643,0.30650234,97344.0,97343.0,0.71013727]
[1738740259125,0.30650234,97344.0,97343.0,0.74111177]
[1738740259415,0.28750234,97344.0,97343.0,0.49579877]
[1738740259616,0.28750234,97344.0,97343.0,1.55883427]
[1738740259843,0.28750234,97344.0,97343.0,2.18078427]
[1738740260141,0.28750234,97344.0,97343.0,2.15007077]
[1738740260357,0.28750234,97344.0,97343.0,2.12542677]
[1738740260987,0.28750234,97344.0,97343.0,1.80419677]
[1738740261183,0.28750234,97344.0,97343.0,1.08787477]
[1738740261332,0.28750234,97344.0,97343.0,1.01808977]
[1738740261683,0.28750234,97344.0,97343.0,1.01044977]
[1738740261885,0.28750234,97344.0,97343.0,1.01808977]
[1738740263868,0.26850234,97344.0,97343.0,1.01808977]
[1738740265457,0.26850234,97344.0,97343.0,0.84508977]
[1738740265755,0.39140234,97344.0,97343.0,0.13019577]
[1738740266486,0.39140234,97344.0,97343.0,0.12162621]
[1738740267213,0.72080234,97344.0,97343.0,0.12162621]
[1738740268846,0.70180234,97344.0,97343.0,0.10249186]
[1738740270374,0.71184358,97344.0,97343.0,0.10249186]
[1738740271384,0.70180234,97344.0,97343.0,0.10249186]
[1738740274705,0.70175062,97344.0,97343.0,0.10249186]
[1738740283349,0.82502462,97344.0,97343.0,0.10249186]
[1738740284081,0.82502462,97344.0,97343.0,0.10239186]
[1738740285054,0.70175062,97344.0,97343.0,0.22566686]
[1738740285249,0.70175062,97344.0,97343.0,0.11089592]
[1738740286678,0.70175062,97344.0,97343.0,0.10239186]
[1738740286901,0.70175062,97344.0,97343.0,0.11089592]
[1738740290380,0.82502462,97344.0,97343.0,0.11089592]
[1738740290785,0.70175062,97344.0,97343.0,0.10879166]
[1738740291373,0.70175062,97344.0,97343.0,0.11728366]
[1738740291571,0.70175062,97344.0,97343.0,0.10879166]
[1738740292494,0.70175062,97344.0,97343.0,0.11728366]
[1738740292637,0.70175062,97344.0,97343.0,0.12383306]
[1738740299753,0.82502462,97344.0,97343.0,0.12383306]
[1738740299958,0.82502462,97344.0,97343.0,0.11534106]
[1738740300436,0.57885062,97344.0,97343.0,0.11534106]
[1738740300637,0.57885062,97344.0,97343.0,0.23861606]
[1738740300959,0.57885062,97344.0,97343.0,0.48543564]
[1738740301860,0.57885062,97344.0,97343.0,0.33116178]
[1738740302317,0.24945062,97344.0,97343.0,0.33116178]
[1738740302550,0.32945062,97344.0,97343.0,0.12382778]
[1738740302719,0.24945062,97344.0,97343.0,1.17051506]
[1738740302918,0.24945062,97344.0,97343.0,1.44954047]
[1738740303315,0.23045062,97344.0,97343.0,1.67964047]
[1738740305339,0.23045062,97344.0,97343.0,1.64864378]
[1738740308904,0.21145062,97344.0,97343.0,1.64864378]
[1738740309115,0.21145062,97344.0,97343.0,1.67958229]
[1738740309555,0.21145062,97344.0,97343.0,1.69958229]
[1738740309788,0.12926662,97344.0,97343.0,1.69958229]
[1738740309988,0.02656091,97344.0,97343.0,1.73828229]
[1738740310130,0.0476,97388.0,97365.0,0.0805]
[1738740310340,0.0476,97388.0,97375.0,0.39861906]
[1738740310532,0.0476,97388.0,97375.0,0.40625906]
[1738740310734,0.0476,97388.0,97375.0,0.41460585]
[1738740310941,0.0476,97388.0,97375.0,3.41038585]
[1738740311138,0.0476,97388.0,97375.0,3.77971285]
[1738740311743,0.0476,97388.0,97375.0,3.18567085]
[1738740312035,0.0476,97388.0,97375.0,2.86352185]
[1738740312825,0.0476,97388.0,97375.0,2.84299885]
[1738740313575,0.0476,97388.0,97375.0,2.71166885]
[1738740313776,0.0476,97388.0,97375.0,1.37341585]
[1738740313990,0.0287068,97388.0,97376.0,0.16431]
[1738740314194,0.0287068,97388.0,97384.0,0.10238506]
[1738740314348,0.0287068,97388.0,97385.0,0.272901]
[1738740314552,0.0287068,97388.0,97386.0,0.10238506]
[1738740314756,0.0287068,97388.0,97387.0,0.272901]
[1738740315083,0.0287068,97388.0,97387.0,0.38362153]
[1738740315230,0.0287068,97388.0,97387.0,0.40516453]
[1738740315662,0.0287068,97388.0,97387.0,0.38362153]
[1738740319385,0.0287068,97388.0,97387.0,0.20457178]
[1738740319386,0.1119068,97388.0,97387.0,0.20457178]
[1738740319567,0.1119068,97388.0,97339.0,0.02774037]
[1738740319568,0.0761,97385.0,97339.0,0.00022449]
[1738740319766,0.0761,97360.0,97346.0,0.304816]
[1738740320035,0.0761,97360.0,97347.0,0.417701]
[1738740320171,0.123261,97355.0,97346.0,1.002695]
[1738740320374,0.51359,97355.0,97346.0,0.922651]
[1738740320680,0.51359,97355.0,97346.0,0.639412]
[1738740320917,0.51359,97355.0,97345.0,0.0205892]
[1738740321117,0.123266,97350.0,97346.0,0.129334]
[1738740321321,0.123266,97350.0,97347.0,0.10238506]
[1738740321322,0.123269,97348.0,97347.0,0.10238506]
[1738740321527,0.636859,97348.0,97347.0,0.10238506]
[1738740323807,0.617859,97348.0,97347.0,0.10238506]
[1738740328879,0.51359,97348.0,97347.0,0.10238506]
[1738740329758,0.636859,97348.0,97347.0,0.10238506]
[1738740332657,0.636859,97348.0,97347.0,0.10260934]
[1738740333057,0.636859,97348.0,97347.0,0.10822493]
[1738740333259,0.51359,97348.0,97347.0,0.10822493]
[1738740335813,0.636859,97348.0,97347.0,0.10822493]
[1738740336037,0.636859,97348.0,97347.0,0.10260934]
[1738740336685,0.51359,97348.0,97347.0,0.10260934]
[1738740336888,0.51359,97348.0,97347.0,0.10822493]
[1738740339598,0.51359,97348.0,97347.0,0.23149493]
[1738740341353,0.51333991,97348.0,97347.0,0.23149493]
[1738740342636,0.51333991,97348.0,97347.0,0.28009493]
[1738740342838,0.51333991,97348.0,97347.0,3.08107993]
[1738740343037,0.51333991,97348.0,97347.0,3.89183393]
[1738740343250,0.51333991,97348.0,97347.0,4.02010793]
[1738740343450,0.51333991,97348.0,97347.0,3.61165293]
[1738740343705,0.51333991,97348.0,97347.0,3.83825293]
[1738740343904,0.51333991,97348.0,97347.0,3.89936754]
[1738740344153,0.49433991,97348.0,97347.0,3.89936754]
[1738740344356,0.49444681,97348.0,97347.0,3.89936754]
[1738740345522,0.49444681,97348.0,97347.0,3.88936754]
[1738740346308,0.49444681,97348.0,97347.0,3.89936754]
[1738740346920,0.49444681,97348.0,97347.0,3.88936754]
[1738740347753,0.49444681,97348.0,97347.0,3.89936754]
[1738740348915,0.47544681,97348.0,97347.0,3.89936754]
[1738740350056,0.41203547,97348.0,97347.0,3.89936754]
[1738740350579,0.30931047,97348.0,97347.0,3.86848754]
[1738740350796,0.30931047,97348.0,97347.0,3.89938389]
[1738740351438,0.28876547,97348.0,97347.0,3.89938389]
[1738740351839,0.20658547,97348.0,97347.0,3.86848754]
[1738740352043,0.20658547,97348.0,97347.0,3.89938462]
[1738740352380,0.18604047,97348.0,97347.0,3.89296438]
[1738740352615,0.10386047,97348.0,97347.0,3.89296438]
[1738740352789,0.10386047,97348.0,97347.0,4.25366136]
[1738740353087,0.0819524,97348.0,97347.0,4.25366136]
[1738740353291,0.0001068,97388.0,97371.0,0.046]
[1738740353506,0.0493,97422.0,97416.0,0.123182]
[1738740353707,0.0493,97422.0,97417.0,0.22556606]
[1738740353865,0.0303,97422.0,97417.0,0.23097513]
[1738740354068,0.0303,97422.0,97417.0,0.10779413]
[1738740354642,0.0303,97422.0,97417.0,0.23097513]
[1738740355100,0.0303,97422.0,97417.0,0.10779413]
[1738740356370,0.0805,97421.0,97417.0,0.10779413]
[1738740356599,0.123179,97419.0,97417.0,0.10779413]
[1738740356797,0.123179,97419.0,97417.0,0.10238506]
[1738740359894,0.09063782,97421.0,97384.0,0.08171979]
[1738740359895,0.123218,97389.0,97384.0,0.08171979]
[1738740360003,0.123221,97386.0,97385.0,0.50251406]
[1738740360205,0.123221,97386.0,97385.0,0.50806811]
[1738740360429,0.123221,97386.0,97385.0,0.10793911]
[1738740360641,0.200321,97386.0,97385.0,0.10793911]
[1738740362134,0.713741,97386.0,97385.0,0.10793911]
[1738740362499,0.713741,97386.0,96891.0,50.0]
[1738740362500,0.0813,97383.0,97347.0,0.00022428]
[1738740362748,0.123261,97354.0,97351.0,0.08171979]
[1738740362949,0.123263,97353.0,97352.0,0.262742]
[1738740363089,0.123263,97353.0,97352.0,0.00461471]
[1738740363518,0.123266,97350.0,97349.0,0.10238506]
[1738740363734,0.636686,97350.0,97349.0,0.10238506]
[1738740364087,0.617686,97350.0,97349.0,0.10238506]
[1738740364379,0.617686,97350.0,97347.0,0.00022428]
[1738740364380,0.123269,97348.0,97347.0,0.00022428]
[1738740364674,0.636689,97348.0,97347.0,0.10260934]
[1738740370905,0.8872119,97348.0,97347.0,0.10260934]
[1738740373136,0.7639429,97348.0,97347.0,0.10260934]
[1738740373510,0.7639429,97348.0,97347.0,0.10726099]
[1738740373693,0.7639429,97348.0,97347.0,1.38859534]
[1738740373893,0.7639429,97348.0,97347.0,1.45581801]
[1738740374530,0.7639429,97348.0,97347.0,1.23516201]
[1738740376644,0.51342,97348.0,97347.0,1.23516201]
[1738740378536,0.51342,97348.0,97347.0,0.98576901]
[1738740379559,0.49442,97348.0,97347.0,0.98576901]
[1738740380396,0.49442,97348.0,97347.0,1.15876901]
[1738740380598,0.49442,97348.0,97347.0,1.29066901]
[1738740382342,0.49442,97348.0,97347.0,1.20856901]
[1738740383939,0.47542,97348.0,97347.0,1.20856901]
[1738740388822,0.45642,97348.0,97347.0,1.20856901]
[1738740389231,0.45642,97348.0,97347.0,4.14399501]
[1738740393897,0.43742,97348.0,97347.0,4.14399501]
[1738740394086,0.43742,97348.0,97347.0,4.1748621]
[1738740396186,0.43742,97348.0,97347.0,4.2981321]
[1738740397846,0.416875,97348.0,97347.0,4.2981321]
[1738740397987,0.334695,97348.0,97347.0,4.3939321]
[1738740398186,0.315695,97348.0,97347.0,4.3939321]
[1738740398440,0.295151,97348.0,97347.0,4.3939321]
[1738740398637,0.212975,97348.0,97347.0,4.3939321]
[1738740399491,0.15134,97348.0,97347.0,4.3939321]
[1738740399749,0.11025,97348.0,97347.0,4.36306501]
[1738740400304,0.11025,97348.0,97347.0,4.39394089]
[1738740400730,0.11025,97348.0,97347.0,4.36306501]
[1738740400958,0.11025,97348.0,97347.0,0.57997126]
[1738740401175,0.11025,97348.0,97347.0,0.54909701]
[1738740401482,0.11025,97348.0,97347.0,4.36306501]
[1738740401638,0.11025,97348.0,97347.0,4.35306501]
[1738740401839,0.11025,97348.0,97347.0,4.36306501]
[1738740402626,0.10725704,97348.0,97347.0,4.36306501]
[1738740402823,0.04254105,97348.0,97347.0,4.36306501]
[1738740403087,0.00145105,97348.0,97347.0,4.3939418]
[1738740403253,0.23308075,97389.0,97388.0,0.123218]
[1738740403454,0.0768,97390.0,97388.0,1.47902256]
[1738740403714,0.0768,97390.0,97389.0,1.05334806]
[1738740404434,0.0814,97399.0,97389.0,1.05759247]
[1738740404632,0.0814,97399.0,97390.0,1.066881]
[1738740404811,0.0814,97399.0,97393.0,0.123211]
[1738740404985,0.0814,97399.0,97394.0,0.10689089]
[1738740405189,0.0814,97399.0,97396.0,0.123207]
[1738740405387,0.0814,97399.0,97397.0,0.10688239]
[1738740406776,0.0814,97399.0,97398.0,1.1505616]
[1738740406906,0.0814,97399.0,97398.0,1.14974015]
[1738740407561,0.0795,97410.0,97409.0,0.123191]
[1738740407924,0.0795,97410.0,97409.0,0.2300518]
[1738740408154,0.0468,97423.0,97420.0,0.123177]
[1738740408155,0.0794,97421.0,97420.0,0.123177]